{"text_format":"1","workbook":"xlsx","n_sheets":7,"sheets":["25 team Bracketology","Team Draws","Night 1","Night 2","Night 3","Night 4 - 25 team single elim.","old -19 team single elimination"],"not_rendered":{"charts":0,"images":0,"macros":1,"external_links":0,"defined_names":1,"comments":0,"pivot_tables":0},"unopened":[],"bounds":{"document_bytes":16777216,"sheet_cells":100000,"rows_first":2000,"rows_last":500,"rows_between":2000,"halvings":0,"cell_chars":16384,"cell_head_chars":4096},"cells_cut":0,"cells_raw":0,"read":"whole","date_system":"1900"}

{"sheet":"25 team Bracketology","index":0,"n_rows":183,"n_cols":20,"rows_kept":183,"cut":false,"hidden":false,"merged":[[161,8,162,8]]}
["25 Team brackets…  Bracketology"]
[null,"3 Nights- 11 round robin games & 4th night is Championship rounds"]
[null,null,null,null,null,null,null,null,null,null,null,null,"At Greystone","At Lake Park","At SARC","At Crabtree","At SARC"]
[null,"A","B","C","D","E",null,null,null,null,null,null,"A","B","C","D","E"]
["F",1,6,11,16,21,null,null,null,null,"At Greystone","F","SARC-Mojo Rising","GS-Gator Done","NR-The Strikers","LKP-Bazinga","SARC-Volleywood"]
["G",2,7,12,17,22,null,null,null,null,"At SARC","G","NR- Six Pack","SARC-Sets Beach","LKP-Meatballs","GS-Sand Gators","SARC-Ral Brawl"]
["H",3,8,13,18,23,null,null,null,null,"At Crabtree","H","Seven Oaks","SARC-Good Bumps","SARC-Mizfits","CT-Scared Hit","LKP-Bumpn Uglies"]
["I",4,9,14,19,24,null,null,null,null,"At Lake Park","I","GS-Spiked Gators","LKP- Will Play","CT-Sand Sharks","SARC-Id Hit That","TEAM HodgePodge"]
["J",5,10,15,20,25,null,null,null,null,"At SARC","J","LKP-The Killers","CT-Serves of Steel","SARC-Sand Dig","SARC-Dirt Devils","GS-Swampmasters"]
[]
[]
["Night 1- All teams At Springdale- each team play 2 games on sand and 1 game on grass courts"]
[null,"Brackets are Columns A-E"]
[null,"Div A plays 3 teams from Div B",null,null,null,"Div E is worked in the schedule of A/B and C/D brackets"]
[null,"Div C plays 3 teams from Div D"]
["Night 2 - (Brackets are columns A-E -play teams within their bracket at 5 different courts, each team play 4 games)"]
[null,"Example: Column A and B play at Springdale's 2 courts.  Column C plays a Lakepark upper court.  Column D plays a Crabtree"]
[]
["Night 3"]
["Brackets are","Rows F-J","5 different","courts","4 games"]
[null,"Same courts as week 2",null,"but also at Greystone"]
[]
["Night 4- Championship Night at Springdale- Top 19 teams"]
[]
[null,"Examples of pairings of teams"]
[null,"night 1","night 2","night 3"]
[]
[null,"Team 1 Example (night 1- play 7,8,9) (night 2-play 2,3,4,5) (night 3- play 6,11,16,21)"]
[null,"A","B","C","D","E"]
["F",1,6,11,16,21]
["G",2,7,12,17,22]
["H",3,8,13,18,23]
["I",4,9,14,19,24]
["J",5,10,15,20,25]
[]
[null,"Team 19 Example",null,null,null,null,null,null,"Team 8 Example"]
[null,"A","B","C","D","E",null,null,"A","B","C","D","E"]
["F",1,6,11,16,21,null,"F",1,6,11,16,21]
["G",2,7,12,17,22,null,"G",2,7,12,17,22]
["H",3,8,13,18,23,null,"H",3,8,13,18,23]
["I",4,9,14,19,24,null,"I",4,9,14,19,24]
["J",5,10,15,20,25,null,"J",5,10,15,20,25]
[]
[]
[]
["Night 1- All teams At Springdale- each team play 2 games on sand and 1 game on grass courts"]
["Even though we play for 5 1/2 hours, individual teams are scheduled to play either earlier or later so they don't have long breaks between games."]
[]
[]
[null,null,"Court","Home","Away",null,null,null,null,null,null,null,"Sand 1","Sand 2","Sand 3",null,null,"Home","Away"]
[1,"05:30:00","Sand 1","Team 6","Team 13"]
[2,"06:00:00","Sand 1","Team 10","Team 22",null,null,null,null,null,null,null,null,null,null,null,null,null,null,"Total Games"]
[3,null,"Sand 2","Team 23","Team 4",null,null,null,null,null,null,"Team 1",1,null,1,null,"Team 1",1,2,{"$f":"SUM(R53:S53)","v":3}]
[4,null,"Sand 3","Team 3","Team 21",null,null,null,null,null,null,"Team 2",2,null,null,null,"Team 2",2,1,{"$f":"SUM(R54:S54)","v":3}]
[5,null,"Grass 1","Team 1","Team 7",null,null,null,null,null,null,"Team 3",null,1,1,null,"Team 3",2,1,3]
[6,null,"Grass 2","Team 2","Team 8",null,null,null,null,null,null,"Team 4",null,1,1,null,"Team 4",2,1,3]
[7,"06:30:00","Sand 1","Team 7","Team 5",null,null,null,null,null,null,"Team 5",1,1,null,null,"Team 5",1,2,3]
[8,null,"Sand 2","Team 25","Team 8",null,null,null,null,null,null,"Team 6",1,null,1,null,"Team 6",2,1,3]
[9,null,"Sand 3","Team 6","Team 24",null,null,null,null,null,null,"Team 7",1,null,1,null,"Team 7",1,2,3]
[10,null,"Grass 1","Team 9","Team 3",null,null,null,null,null,null,"Team 8",null,1,1,null,"Team 8",1,2,3]
[11,null,"Grass 2","Team 4","Team 10",null,null,null,null,null,null,"Team 9",null,1,1,null,"Team 9",1,2,3]
[12,"07:00:00","Sand 1","Team 2","Team 23",null,null,null,null,null,null,"Team 10",2,null,null,null,"Team 10",1,2,3]
[13,null,"Sand 2","Team 21","Team 13",null,null,null,null,null,null,"Team 11",1,null,1,null,"Team 11",2,1,3]
[14,null,"Sand 3","Team 20","Team 22",null,null,null,null,null,null,"Team 12",null,2,null,null,"Team 12",2,1,3]
[15,null,"Grass 1","Team 11","Team 17",null,null,null,null,null,null,"Team 13",2,1,null,null,"Team 13",2,2,4]
[16,null,"Grass 2","Team 12","Team 18",null,null,null,null,null,null,"Team 14",1,null,1,null,"Team 14",1,2,3]
[17,"07:30:00","Sand 1","Team 24","Team 10",null,null,null,null,null,null,"Team 15",null,1,1,null,"Team 15",2,1,3]
[18,null,"Sand 2","Team 3","Team 25",null,null,null,null,null,null,"Team 16",2,null,null,null,"Team 16",1,2,3]
[19,null,"Sand 3","Team 8","Team 1",null,null,null,null,null,null,"Team 17",null,1,1,null,"Team 17",1,2,3]
[20,null,"Grass 1","Team 13","Team 19",null,null,null,null,null,null,"Team 18",1,null,1,null,"Team 18",2,1,3]
[21,null,"Grass 2","Team 5","Team 6",null,null,null,null,null,null,"Team 19",null,1,1,null,"Team 19",1,2,3]
[22,"08:00:00","Sand 1","Team 21","Team 2",null,null,null,null,null,null,"Team 20",null,1,1,null,"Team 20",1,2,3]
[23,null,"Sand 2","Team 22","Team 9",null,null,null,null,null,null,"Team 21",1,1,1,null,"Team 21",2,1,3]
[24,null,"Sand 3","Team 4","Team 7",null,null,null,null,null,null,"Team 22",1,1,1,null,"Team 22",1,2,3]
[25,null,"Grass 1","Team 14","Team 20",null,null,null,null,null,null,"Team 23",2,1,null,null,"Team 23",2,1,3]
[26,null,"Grass 2","Team 15","Team 16",null,null,null,null,null,null,"Team 24",1,1,1,null,"Team 24",2,1,3]
[27,"08:30:00","Sand 1","Team 18","Team 11",null,null,null,null,null,null,"Team 25",null,2,1,null,"Team 25",2,1,3]
[28,null,"Sand 2","Team 24","Team 5"]
[29,null,"Sand 3","Team 25","Team 9"]
[30,"09:00:00","Sand 1","Team 23","Team 1"]
[31,null,"Sand 2","Team 19","Team 12"]
[32,null,"Sand 3","Team 17","Team 14"]
[33,"09:30:00","Sand 1","Team 13","Team 16"]
[34,null,"Sand 2","Team 12","Team 20"]
[35,null,"Sand 3","Team 18","Team 15"]
[36,"10:00:00","Sand 1","Team 16","Team 14"]
[37,null,"Sand 2","Team 15","Team 17"]
[38,null,"Sand 3","Team 11","Team 19"]
[]
[]
[]
[]
["Night 2","5 different courts w/ 5 teams in each bracket"]
[null,"Play 4 games each… "]
[null,"Example of A Col. Bracket"]
[null,"    ---- At Springdale or Greystone (w/ 2nd court)"]
[null,null,null,"Home","Away",null,"Home","Away",null,null,null,"   ---- At Lake Park or Crabtree"]
[1,null,"18:00:00","Team 1","Team 2",null,"Team 4","Team 5",null,null,null,null,null,"Home","Away"]
[2,null,"18:30:00","Team 3","Team 1",null,null,null,null,null,1,null,"18:00:00","Team 1","Team 2"]
[3,null,"19:00:00","Team 4","Team 2",null,"Team 5","Team 3",null,null,2,null,"18:30:00","Team 3","Team 1"]
[4,null,"19:30:00","Team 5","Team 1",null,null,null,null,null,3,null,"19:00:00","Team 4","Team 2"]
[5,null,"20:00:00","Team 2","Team 3",null,null,null,null,null,4,null,"19:30:00","Team 5","Team 1"]
[6,null,"20:30:00","Team 1","Team 4",null,null,null,null,null,5,null,"20:00:00","Team 2","Team 3"]
[7,null,"21:00:00","Team 2","Team 5",null,null,null,null,null,6,null,"20:30:00","Team 1","Team 4"]
[8,null,"21:30:00","Team 3","Team 4",null,null,null,null,null,7,null,"21:00:00","Team 2","Team 5"]
[9,null,"22:00:00",null,null,null,null,null,null,null,8,null,"21:30:00","Team 3","Team 4"]
[10,null,"22:30:00",null,null,null,null,null,null,null,9,null,"22:00:00","Team 4","Team 5"]
[null,null,null,null,null,null,null,null,null,null,10,null,"22:30:00","Team 5","Team 3"]
[]
[]
["Night 3","5 different courts w/ 5 teams in each bracket"]
[null,"Play 4 games each…  "]
[null,"Example of F Row Bracket-"]
[null," ----- At Springdale or Greystone (w/ 2nd court)",null,null,null,null,null,null,null,null,null,"  ---- At Lake Park or Crabtree"]
[null,null,null,"Home","Away",null,"Home","Away",null,null,null,null,null,"Home","Away"]
[1,null,"18:00:00","Team 1","Team 6",null,"Team 16","Team 21",null,null,1,null,"18:00:00","Team 1","Team 6"]
[2,null,"18:30:00","Team 11","Team 1",null,null,null,null,null,2,null,"18:30:00","Team 11","Team 1"]
[3,null,"19:00:00","Team 16","Team 6",null,"Team 21","Team 11",null,null,3,null,"19:00:00","Team 16","Team 6"]
[4,null,"19:30:00","Team 21","Team 1",null,null,null,null,null,4,null,"19:30:00","Team 21","Team 1"]
[5,null,"20:00:00","Team 6","Team 11",null,null,null,null,null,5,null,"20:00:00","Team 6","Team 11"]
[6,null,"20:30:00","Team 1","Team 16",null,null,null,null,null,6,null,"20:30:00","Team 1","Team 16"]
[7,null,"21:00:00","Team 6","Team 21",null,null,null,null,null,7,null,"21:00:00","Team 6","Team 21"]
[8,null,"21:30:00","Team 11","Team 16",null,null,null,null,null,8,null,"21:30:00","Team 11","Team 16"]
[9,null,"22:00:00",null,null,null,null,null,null,null,9,null,"22:00:00","Team 16","Team 21"]
[10,null,"22:30:00",null,null,null,null,null,null,null,10,null,"22:30:00","Team 21","Team 11"]
[]
["Night 4"]
["Aug 21 Championship Night Brackets"]
["Top 19 teams plus the Battle of the Bottom (teams 24 & 25)"]
["16 team Single Elmination with the bottom 3 seads having play in Games..  19 Total Games"]
[]
["18:00:00","18:30:00","19:00:00","19:30:00","20:00:00","20:30:00","21:00:00","21:15:00","21:45:00"]
[null,null,null,null,null,"Single Elimination"]
["Bottom 6 play in",null,null,null,null,"break","FINAL FOUR","Battle of the Bottom Matchup","GROWLER CHAMPIONSHIP"]
[null,4]
[]
[]
[null,13]
[]
[null,12]
[]
[]
[null,5]
[]
[null,9]
[]
[]
[null,8]
[]
[null,null,1]
[]
[18]
[]
[]
[19]
[]
[]
[]
[]
[]
[null,null,2]
[16]
[]
[]
[17]
[null,null,10]
[]
[]
[null,null,7]
[]
[null,null,null,3]
[14]
[]
[]
[15]
[null,null,null,11]
[]
[null,null,null,null,null,null,null,null,null,null," "]
[null,null,null,6,null,null,null,24]
[]
[]
[]
[null,null,null,null,null,null,null,25]

{"sheet":"Team Draws","index":1,"n_rows":39,"n_cols":17,"rows_kept":39,"cut":false,"hidden":false,"merged":[]}
["Team Draws"]
[]
["25 Team brackets…  Bracketology"]
[null,"3 Nights- 11 round robin games & 4th night is Championship rounds"]
[null,null,null,null,null,null,null,null,null,null,null,null,"At Greystone","At Lake Park","At SARC","At Crabtree","At SARC"]
[null,"A","B","C","D","E",null,null,null,null,null,null,"A","B","C","D","E"]
["F",1,6,11,16,21,null,null,null,null,"At Greystone","F","SARC-Mojo Rising","GS-Gator Done!","NR-The Strikers","LKP-Bazinga","SARC-Volleywood"]
["G",2,7,12,17,22,null,null,null,null,"At SARC","G","NR- Six Pack Attack","SARC-Sets On the Beach","LKP-Meatballs","GS-Sand Gators","SARC-Raleigh Brawl"]
["H",3,8,13,18,23,null,null,null,null,"At Crabtree","H","Seven Oaks","SARC-Good Bumps,Nice Sets","SARC-Mizfits","CT-Scared Hitless","LKP-Bumpn' Uglies"]
["I",4,9,14,19,24,null,null,null,null,"At Lake Park","I","GS-Spiked Gators","LKP- Will Play for Sets","CT-Sand Sharks","SARC-I'd Hit That","HodgePodge"]
["J",5,10,15,20,25,null,null,null,null,"At SARC","J","LKP-The Killers","CT-Serves of Steel","SARC-Sand Diggers","SARC-Dirt Devils","GS-Swampmasters"]
[]
[]
[null,null,"Night 1","Night 2","Night 3","Overall"]
["Team 1","SARC-Mojo Rising","1-2","1-3",null,"2-5"]
["Team 2","NR- Six Pack Attack","2-1","4-0",null,"6-1"]
["Team 3","Seven Oaks","1-2","3-1",null,"4-3"]
["Team 4","GS-Spiked Gators","0-3","1-3",null,"1-6"]
["Team 5","LKP-The Killers","2-1","1-3",null,"3-4"]
["Team 6","GS-Gator Done!","2-1","2-2",null,"4-3"]
["Team 7","SARC-Sets On the Beach","1-2","0-4",null,"1-6"]
["Team 8","SARC-Good Bumps,Nice Sets","2-1","2-2",null,"4-3"]
["Team 9","LKP- Will Play for Sets","3-0","4-0",null,"7-0"]
["Team 10","CT-Serves of Steel","1-2","2-2",null,"3-4"]
["Team 11","NR-The Strikers","1-2","3-1",null,"4-3"]
["Team 12","LKP-Meatballs","1-2","0-4",null,"1-6"]
["Team 13","SARC-Mizfits","0-4","1-3",null,"1-7"]
["Team 14","CT-Sand Sharks","2-1","3-1",null,"5-2"]
["Team 15","SARC-Sand Diggers","3-0","3-1",null,"6-1"]
["Team 16","LKP-Bazinga","2-1","4-0",null,"6-1"]
["Team 17","GS-Sand Gators","0-3","0-4",null,"0-7"]
["Team 18","CT-Scared Hitless","2-1","3-1",null,"5-2"]
["Team 19","SARC-I'd Hit That","3-0","2-2",null,"5-2"]
["Team 20","SARC-Dirt Devils","0-3","1-3",null,"1-6"]
["Team 21","SARC-Volleywood","3-0","4-0",null,"7-0"]
["Team 22","SARC-Raleigh Brawl","2-1","3-1",null,"5-2"]
["Team 23","LKP-Bumpn' Uglies","2-1","2-2",null,"4-3"]
["Team 24","HodgePodge","2-1","0-4",null,"2-5"]
["Team 25","GS-Swampmasters","0-3","1-3",null,"1-6"]

{"sheet":"Night 1","index":2,"n_rows":75,"n_cols":11,"rows_kept":75,"cut":false,"hidden":false,"merged":[[3,0,3,4],[4,0,4,4]]}
["Opening Night Schedule"]
["Tues, July 31st"]
[]
["Night 1- All teams At Springdale- each team play 2 games on sand and 1 game on grass courts"]
["Even though we play for 5 1/2 hours, individual teams are scheduled to play either earlier or later so they don't have long breaks between games."]
[]
[null,null,null,null,null,null,"Score","Winner"]
[null,null,"Court","Home","Away",null,null,null,null,null,"Sand 1"]
[1,"05:30:00","Sand 1","GS-Gator Done!","SARC-Mizfits",null,"21-11","GS-Gator Done!",null,"05:30:00","GS-Gator Done! vs SARC-Mizfits"]
[2,"06:00:00","Sand 1","CT-Serves of Steel","SARC-Raleigh Brawl",null,"10-21","SARC-Raleigh Brawl",null,"06:00:00","CT-Serves of Steel vs SARC-Raleigh Brawl"]
[3,null,"Sand 2","LKP-Bumpn' Uglies","GS-Spiked Gators",null,"21-7","LKP-Bumpn' Uglies",null,"06:30:00","SARC-Sets On the Beach vs LKP-The Killers"]
[4,null,"Sand 3","Seven Oaks","SARC-Volleywood",null,"14-20","SARC-Volleywood",null,"07:00:00","NR- Six Pack Attack vs LKP-Bumpn' Uglies"]
[5,null,"Grass 1","SARC-Mojo Rising","SARC-Sets On the Beach",null,"21-16","SARC-Mojo Rising",null,"07:30:00","HodgePodge vs CT-Serves of Steel"]
[6,null,"Grass 2","NR- Six Pack Attack","SARC-Good Bumps,Nice Sets",null,"21-7","NR- Six Pack Attack",null,"08:00:00","SARC-Volleywood vs NR- Six Pack Attack"]
[7,"06:30:00","Sand 1","SARC-Sets On the Beach","LKP-The Killers",null,"18-19","LKP-The Killers",null,"08:30:00","CT-Scared Hitless vs NR-The Strikers"]
[8,null,"Sand 2","GS-Swampmasters","SARC-Good Bumps,Nice Sets",null,"10-21","SARC-Good Bumps,Nice Sets",null,"09:00:00","LKP-Bumpn' Uglies vs SARC-Mojo Rising"]
[9,null,"Sand 3","GS-Gator Done!","HodgePodge",null,"19-21","HodgePodge",null,"09:30:00","SARC-Mizfits vs LKP-Bazinga"]
[10,null,"Grass 1","LKP- Will Play for Sets","Seven Oaks",null,"21-18","LKP- Will Play for Sets",null,"10:00:00","LKP-Bazinga vs CT-Sand Sharks"]
[11,null,"Grass 2","GS-Spiked Gators","CT-Serves of Steel",null,"5-21","CT-Serves of Steel",null,"START Times Approx…  Start Immediately after the game ahead"]
[12,"07:00:00","Sand 1","NR- Six Pack Attack","LKP-Bumpn' Uglies",null,"21-14","NR- Six Pack Attack"]
[13,null,"Sand 2","SARC-Volleywood","SARC-Mizfits",null,"21-0","SARC-Volleywood",null,null,"Sand 2"]
[14,null,"Sand 3","SARC-Dirt Devils","SARC-Raleigh Brawl",null,"9-21","SARC-Raleigh Brawl"]
[15,null,"Grass 1","NR-The Strikers","GS-Sand Gators",null,"21-7","NR-The Strikers",null,"06:00:00","LKP-Bumpn' Uglies vs GS-Spiked Gators"]
[16,null,"Grass 2","LKP-Meatballs","CT-Scared Hitless",null,"10-21","CT-Scared Hitless",null,"06:30:00","GS-Swampmasters vs SARC-Good Bumps,Nice Sets"]
[17,"07:30:00","Sand 1","HodgePodge","CT-Serves of Steel",null,"21-2","HodgePodge",null,"07:00:00","SARC-Volleywood vs SARC-Mizfits"]
[18,null,"Sand 2","Seven Oaks","GS-Swampmasters",null,"21-16","Seven Oaks",null,"07:30:00","Seven Oaks vs GS-Swampmasters"]
[19,null,"Sand 3","SARC-Good Bumps,Nice Sets","SARC-Mojo Rising",null,"21-13","SARC-Good Bumps,Nice Sets",null,"08:00:00","SARC-Raleigh Brawl vs LKP- Will Play for Sets"]
[20,null,"Grass 1","SARC-Mizfits","SARC-I'd Hit That",null,"6-21","SARC-I'd Hit That",null,"08:30:00","HodgePodge vs LKP-The Killers"]
[21,null,"Grass 2","LKP-The Killers","GS-Gator Done!",null,"19-21","GS-Gator Done!",null,"09:00:00","SARC-I'd Hit That vs LKP-Meatballs"]
[22,"08:00:00","Sand 1","SARC-Volleywood","NR- Six Pack Attack",null,"21-18","SARC-Volleywood",null,"09:30:00","LKP-Meatballs vs SARC-Dirt Devils"]
[23,null,"Sand 2","SARC-Raleigh Brawl","LKP- Will Play for Sets",null,"14-21","LKP- Will Play for Sets",null,"10:00:00","SARC-Sand Diggers vs GS-Sand Gators"]
[24,null,"Sand 3","GS-Spiked Gators","SARC-Sets On the Beach",null,"12-21","SARC-Sets On the Beach"]
[25,null,"Grass 1","CT-Sand Sharks","SARC-Dirt Devils",null,"21-6","CT-Sand Sharks",null,"START Times Approx…  Start Immediately after the game ahead"]
[26,null,"Grass 2","SARC-Sand Diggers","LKP-Bazinga",null,"21-3","SARC-Sand Diggers"]
[27,"08:30:00","Sand 1","CT-Scared Hitless","NR-The Strikers",null,"20-17","CT-Scared Hitless",null,null,"Sand 3"]
[28,null,"Sand 2","HodgePodge","LKP-The Killers",null,"12-17","LKP-The Killers"]
[29,null,"Sand 3","GS-Swampmasters","LKP- Will Play for Sets",null,"12-21","LKP- Will Play for Sets",null,"06:00:00","Seven Oaks vs SARC-Volleywood"]
[30,"09:00:00","Sand 1","LKP-Bumpn' Uglies","SARC-Mojo Rising",null,"21-14","LKP-Bumpn' Uglies",null,"06:30:00","GS-Gator Done! vs HodgePodge"]
[31,null,"Sand 2","SARC-I'd Hit That","LKP-Meatballs",null,"21-15","SARC-I'd Hit That",null,"07:00:00","SARC-Dirt Devils vs SARC-Raleigh Brawl"]
[32,null,"Sand 3","GS-Sand Gators","CT-Sand Sharks",null,"5-21","CT-Sand Sharks",null,"07:30:00","SARC-Good Bumps,Nice Sets vs SARC-Mojo Rising"]
[33,"09:30:00","Sand 1","SARC-Mizfits","LKP-Bazinga",null,"8-21","LKP-Bazinga",null,"08:00:00","GS-Spiked Gators vs SARC-Sets On the Beach"]
[34,null,"Sand 2","LKP-Meatballs","SARC-Dirt Devils",null,"21-12","LKP-Meatballs",null,"08:30:00","GS-Swampmasters vs LKP- Will Play for Sets"]
[35,null,"Sand 3","CT-Scared Hitless","SARC-Sand Diggers",null,"19-21","SARC-Sand Diggers",null,"09:00:00","GS-Sand Gators vs CT-Sand Sharks"]
[36,"10:00:00","Sand 1","LKP-Bazinga","CT-Sand Sharks",null,"19-13","LKP-Bazinga",null,"09:30:00","CT-Scared Hitless vs SARC-Sand Diggers"]
[37,null,"Sand 2","SARC-Sand Diggers","GS-Sand Gators",null,"21-8","SARC-Sand Diggers",null,"10:00:00","NR-The Strikers vs SARC-I'd Hit That"]
[38,null,"Sand 3","NR-The Strikers","SARC-I'd Hit That",null,"18-21","SARC-I'd Hit That",null,"START Times Approx…  Start Immediately after the game ahead"]
[null,null,null,"Team 13 Mizfits will play 4 games"]
[null,null,null,null,null,null,null,null,null,null,"Grass 1"]
[null,null,null,"STANDINGS"]
[null,null,null,null,"Night 1",null,null,null,null,"06:00:00","SARC-Mojo Rising vs SARC-Sets On the Beach"]
[null,null,"Team 1","SARC-Mojo Rising","1-2",null,null,null,null,"06:30:00","LKP- Will Play for Sets vs Seven Oaks"]
[null,null,"Team 2","NR- Six Pack Attack","2-1",null,null,null,null,"07:00:00","NR-The Strikers vs GS-Sand Gators"]
[null,null,"Team 3","Seven Oaks","1-2",null,null,null,null,"07:30:00","SARC-Mizfits vs SARC-I'd Hit That"]
[null,null,"Team 4","GS-Spiked Gators","0-3",null,null,null,null,"08:00:00","CT-Sand Sharks vs SARC-Dirt Devils"]
[null,null,"Team 5","LKP-The Killers","2-1"]
[null,null,"Team 6","GS-Gator Done!","2-1",null,null,null,null,"START Times Approx…  Start Immediately after the game ahead"]
[null,null,"Team 7","SARC-Sets On the Beach","1-2"]
[null,null,"Team 8","SARC-Good Bumps,Nice Sets","2-1"]
[null,null,"Team 9","LKP- Will Play for Sets","3-0",null,null,null,null,null,"Grass 2"]
[null,null,"Team 10","CT-Serves of Steel","1-2"]
[null,null,"Team 11","NR-The Strikers","1-2",null,null,null,null,"06:00:00","NR- Six Pack Attack vs SARC-Good Bumps,Nice Sets"]
[null,null,"Team 12","LKP-Meatballs","1-2",null,null,null,null,"06:30:00","GS-Spiked Gators vs CT-Serves of Steel"]
[null,null,"Team 13","SARC-Mizfits","0-4",null,null,null,null,"07:00:00","LKP-Meatballs vs CT-Scared Hitless"]
[null,null,"Team 14","CT-Sand Sharks","2-1",null,null,null,null,"07:30:00","LKP-The Killers vs GS-Gator Done!"]
[null,null,"Team 15","SARC-Sand Diggers","3-0",null,null,null,null,"08:00:00","SARC-Sand Diggers vs LKP-Bazinga"]
[null,null,"Team 16","LKP-Bazinga","2-1"]
[null,null,"Team 17","GS-Sand Gators","0-3",null,null,null,null,"START Times Approx…  Start Immediately after the game ahead"]
[null,null,"Team 18","CT-Scared Hitless","2-1"]
[null,null,"Team 19","SARC-I'd Hit That","3-0"]
[null,null,"Team 20","SARC-Dirt Devils","0-3"]
[null,null,"Team 21","SARC-Volleywood","3-0"]
[null,null,"Team 22","SARC-Raleigh Brawl","2-1"]
[null,null,"Team 23","LKP-Bumpn' Uglies","2-1"]
[null,null,"Team 24","HodgePodge","2-1"]
[null,null,"Team 25","GS-Swampmasters","0-3"]

{"sheet":"Night 2","index":3,"n_rows":71,"n_cols":15,"rows_kept":71,"cut":false,"hidden":false,"merged":[]}
["Aug 7th",null,null,null,null,null,null,null,"Aug 7th"]
["Night 2","5 different courts w/ 5 teams in each bracket",null,null,null,null,null,null,"Night 2"]
[null,"Play 4 games each… "]
["SPRINGDALE","Brackets are Based on Teams from each COLUMN",null,null,null,"Score","Winner",null,null,null,null,null,null,"Score","Winner"]
[null,null,"Court 1"]
[null,null,null,"Home","Away",null,null,null,"GREYSTONE"]
["NR-The Strikers",1,"18:00:00","NR-The Strikers","LKP-Meatballs","21-10","NR-The Strikers",null,null,null,"Court 1"]
["LKP-Meatballs",2,"18:30:00","SARC-Mizfits","CT-Sand Sharks","9-21","CT-Sand Sharks",null,null,null,null,"Home","Away"]
["SARC-Mizfits",3,"19:00:00","SARC-Sand Diggers","NR-The Strikers","19-11","SARC-Sand Diggers",null,"SARC-Mojo Rising",1,"18:00:00","SARC-Mojo Rising","NR- Six Pack Attack","5-21","NR- Six Pack Attack"]
["CT-Sand Sharks",4,"19:30:00","LKP-Meatballs","SARC-Mizfits","12-21","SARC-Mizfits",null,"NR- Six Pack Attack",2,"18:30:00","GS-Spiked Gators","LKP-The Killers","21-19","GS-Spiked Gators"]
["SARC-Sand Diggers",5,"20:00:00","SARC-Mizfits","SARC-Sand Diggers","8-21","SARC-Sand Diggers",null,"Seven Oaks",3,"19:00:00","Seven Oaks","SARC-Mojo Rising","21-4","Seven Oaks"]
[null,6,"20:30:00","CT-Sand Sharks","LKP-Meatballs","16-15","CT-Sand Sharks",null,"GS-Spiked Gators",4,"19:30:00","GS-Spiked Gators","NR- Six Pack Attack","5-21","NR- Six Pack Attack"]
[null,7,"21:00:00","SARC-Mizfits","NR-The Strikers","6-21","NR-The Strikers",null,"LKP-The Killers",5,"20:00:00","LKP-The Killers","SARC-Mojo Rising","21-15","LKP-The Killers"]
[null,8,"21:30:00","CT-Sand Sharks","SARC-Sand Diggers","21-10","CT-Sand Sharks",null,null,6,"20:30:00","NR- Six Pack Attack","Seven Oaks","21-17","NR- Six Pack Attack"]
[null,null,null,null,null,null,null,null,null,7,"21:00:00","SARC-Mojo Rising","GS-Spiked Gators","21-13","SARC-Mojo Rising"]
[null,null,"Court 2",null,null,null,null,null,null,8,"21:30:00","NR- Six Pack Attack","LKP-The Killers","21-13","NR- Six Pack Attack"]
[null,null,null,"Home","Away",null,null,null,null,9,"22:00:00","LKP-The Killers","Seven Oaks","13-21","Seven Oaks"]
["SARC-Volleywood",1,"18:00:00","SARC-Volleywood","SARC-Raleigh Brawl","21-15","SARC-Volleywood",null,null,10,"22:30:00","Seven Oaks","GS-Spiked Gators","21-4","Seven Oaks"]
["SARC-Raleigh Brawl",2,"18:30:00","HodgePodge","GS-Swampmasters","8-21","GS-Swampmasters"]
["LKP-Bumpn' Uglies",3,"19:00:00","LKP-Bumpn' Uglies","SARC-Volleywood","9-21","SARC-Volleywood"]
["HodgePodge",4,"19:30:00","SARC-Volleywood","HodgePodge","21-4","SARC-Volleywood"]
["GS-Swampmasters",5,"20:00:00","SARC-Raleigh Brawl","LKP-Bumpn' Uglies","21-10","SARC-Raleigh Brawl"]
[null,6,"20:30:00","GS-Swampmasters","SARC-Volleywood","4-21","SARC-Volleywood"]
[null,7,"21:00:00","HodgePodge","SARC-Raleigh Brawl","16-21","SARC-Raleigh Brawl"]
[null,8,"21:30:00","LKP-Bumpn' Uglies","GS-Swampmasters","21-13","LKP-Bumpn' Uglies"]
[]
[null,null,"Court 3"]
[null,null,null,"Home","Away"]
[null,null,"18:00:00","LKP-Bumpn' Uglies","HodgePodge","21-8","LKP-Bumpn' Uglies"]
[null,null,"18:30:00","LKP-Meatballs","SARC-Sand Diggers","14-19","SARC-Sand Diggers"]
[null,null,"19:00:00","SARC-Raleigh Brawl","GS-Swampmasters","21-12","SARC-Raleigh Brawl"]
[null,null,"19:30:00","NR-The Strikers","CT-Sand Sharks","21-12","NR-The Strikers"]
[null,null,"20:00:00"]
[]
["Aug 7th"]
["Night 2"]
["LAKE PARK"]
[null,null,null,"Home","Away"]
["GS-Gator Done!",null,"18:00:00","GS-Gator Done!","SARC-Sets On the Beach","21-19","GS-Gator Done!"]
["SARC-Sets On the Beach",null,"18:30:00","LKP- Will Play for Sets","CT-Serves of Steel","21-15","LKP- Will Play for Sets"]
["SARC-Good Bumps,Nice Sets",null,"19:00:00","SARC-Good Bumps,Nice Sets","GS-Gator Done!","21-15","SARC-Good Bumps,Nice Sets"]
["LKP- Will Play for Sets",null,"19:30:00","GS-Gator Done!","LKP- Will Play for Sets","1-21","LKP- Will Play for Sets"]
["CT-Serves of Steel",null,"20:00:00","SARC-Sets On the Beach","SARC-Good Bumps,Nice Sets","9-21","SARC-Good Bumps,Nice Sets"]
[null,null,"20:30:00","CT-Serves of Steel","GS-Gator Done!","8-21","GS-Gator Done!"]
[null,null,"21:00:00","LKP- Will Play for Sets","SARC-Sets On the Beach","21-5","LKP- Will Play for Sets"]
[null,null,"21:30:00","SARC-Good Bumps,Nice Sets","CT-Serves of Steel","15-21","CT-Serves of Steel"]
[null,null,"22:00:00","SARC-Good Bumps,Nice Sets","LKP- Will Play for Sets","10-21","LKP- Will Play for Sets"]
[null,null,"22:30:00","SARC-Sets On the Beach","CT-Serves of Steel","15-21","CT-Serves of Steel"]
[]
[]
[]
[]
[]
[]
[]
[]
["Aug 7th"]
["Night 2"]
[]
["CRABTREE"]
[null,null,null,"Home","Away"]
["LKP-Bazinga",1,"18:00:00","LKP-Bazinga","GS-Sand Gators","21-5","LKP-Bazinga"]
["GS-Sand Gators",2,"18:30:00","CT-Scared Hitless","LKP-Bazinga","17-19","LKP-Bazinga"]
["CT-Scared Hitless",3,"19:00:00","SARC-I'd Hit That","GS-Sand Gators","21-15","SARC-I'd Hit That"]
["SARC-I'd Hit That",4,"19:30:00","SARC-Dirt Devils","LKP-Bazinga","8-21","LKP-Bazinga"]
["SARC-Dirt Devils",5,"20:00:00","GS-Sand Gators","CT-Scared Hitless","14-21","CT-Scared Hitless"]
[null,6,"20:30:00","LKP-Bazinga","SARC-I'd Hit That","21-10","LKP-Bazinga"]
[null,7,"21:00:00","GS-Sand Gators","SARC-Dirt Devils","12-21","SARC-Dirt Devils"]
[null,8,"21:30:00","CT-Scared Hitless","SARC-I'd Hit That","21-18","CT-Scared Hitless"]
[null,9,"22:00:00","SARC-I'd Hit That","SARC-Dirt Devils","22-20","SARC-I'd Hit That"]
[null,10,"22:30:00","SARC-Dirt Devils","CT-Scared Hitless","14-21","CT-Scared Hitless"]

{"sheet":"Night 3","index":4,"n_rows":66,"n_cols":22,"rows_kept":66,"cut":false,"hidden":false,"merged":[]}
[null,null,null,null,null,null,null,null,null,null,null,null,null,null,null,null,"A","B","C","D","E"]
["Aug 14th","5 different courts w/ 5 teams in each bracket",null,null,null,null,"Aug 14th",null,null,null,null,null,null,null,null,"F",1,6,11,16,21,"At Greystone"]
["Night 3","Play 4 games each… ",null,null,null,null,"Night 3",null,null,null,null,null,null,null,null,"G",2,7,12,17,22,"At SARC"]
[null,"Brackets are Based on Teams from each ROW",null,null,null,null,null,null,null,null,null,null,null,null,null,"H",3,8,13,18,23,"At Crabtree"]
[null,null,null,null,null,null,null,null,null,null,null,null,null,null,null,"I",4,9,14,19,24,"At Lake Park"]
["SPRINGDALE",null,"Court 1",null,null,null,null,null,null,null,null,null,null,null,null,"J",5,10,15,20,25,"At SARC"]
[null,null,null,"Home","Away",null,"GREYSTONE"]
["LKP-The Killers",1,"18:00:00","LKP-The Killers","CT-Serves of Steel",null,null,null,"Court 1"]
["CT-Serves of Steel",2,"18:30:00","SARC-Sand Diggers","SARC-Dirt Devils",null,null,null,null,"Home","Away"]
["SARC-Sand Diggers",3,"19:00:00","GS-Swampmasters","LKP-The Killers",null,"SARC-Mojo Rising",1,"18:00:00","LKP-Bazinga","SARC-Volleywood"]
["SARC-Dirt Devils",4,"19:30:00","CT-Serves of Steel","SARC-Sand Diggers",null,"GS-Gator Done!",2,"18:30:00","NR-The Strikers","SARC-Mojo Rising"]
["GS-Swampmasters",5,"20:00:00","SARC-Sand Diggers","GS-Swampmasters",null,"NR-The Strikers",3,"19:00:00","LKP-Bazinga","GS-Gator Done!"]
[null,6,"20:30:00","SARC-Dirt Devils","CT-Serves of Steel",null,"LKP-Bazinga",4,"19:30:00","SARC-Volleywood","SARC-Mojo Rising"]
[null,7,"21:00:00","SARC-Sand Diggers","LKP-The Killers",null,"SARC-Volleywood",5,"20:00:00","GS-Gator Done!","NR-The Strikers"]
[null,8,"21:30:00","SARC-Dirt Devils","GS-Swampmasters",null,null,6,"20:30:00","SARC-Mojo Rising","LKP-Bazinga"]
[null,null,null,null,null,null,null,7,"21:00:00","NR-The Strikers","SARC-Volleywood"]
[null,null,"Court 2",null,null,null,null,8,"21:30:00","GS-Gator Done!","SARC-Volleywood"]
[null,null,null,"Home","Away",null,null,9,"22:00:00","NR-The Strikers","LKP-Bazinga"]
["NR- Six Pack Attack",1,"18:00:00","NR- Six Pack Attack","SARC-Sets On the Beach",null,null,10,"22:30:00","SARC-Mojo Rising","GS-Gator Done!"]
["SARC-Sets On the Beach",2,"18:30:00","GS-Sand Gators","SARC-Raleigh Brawl"]
["LKP-Meatballs",3,"19:00:00","LKP-Meatballs","NR- Six Pack Attack"]
["GS-Sand Gators",4,"19:30:00","NR- Six Pack Attack","GS-Sand Gators"]
["SARC-Raleigh Brawl",5,"20:00:00","SARC-Sets On the Beach","LKP-Meatballs"]
[null,6,"20:30:00","SARC-Raleigh Brawl","NR- Six Pack Attack"]
[null,7,"21:00:00","GS-Sand Gators","SARC-Sets On the Beach"]
[null,8,"21:30:00","LKP-Meatballs","SARC-Raleigh Brawl"]
[]
[null,null,"Court 3"]
[null,null,null,"Home","Away"]
[null,null,"18:00:00","LKP-Meatballs","GS-Sand Gators"]
[null,null,"18:30:00","CT-Serves of Steel","GS-Swampmasters"]
[null,null,"19:00:00","SARC-Sets On the Beach","SARC-Raleigh Brawl"]
[null,null,"19:30:00","LKP-The Killers","SARC-Dirt Devils"]
[]
[]
["Aug 14th"]
["Night 3"]
[]
["LAKE PARK"]
[null,null,null,"Home","Away"]
["GS-Spiked Gators",1,"18:00:00","GS-Spiked Gators","LKP- Will Play for Sets"]
["LKP- Will Play for Sets",2,"18:30:00","CT-Sand Sharks","GS-Spiked Gators"]
["CT-Sand Sharks",3,"19:00:00","SARC-I'd Hit That","LKP- Will Play for Sets"]
["SARC-I'd Hit That",4,"19:30:00","HodgePodge","GS-Spiked Gators"]
["HodgePodge",5,"20:00:00","LKP- Will Play for Sets","CT-Sand Sharks"]
[null,6,"20:30:00","GS-Spiked Gators","SARC-I'd Hit That"]
[null,7,"21:00:00","LKP- Will Play for Sets","HodgePodge"]
[null,8,"21:30:00","CT-Sand Sharks","SARC-I'd Hit That"]
[null,9,"22:00:00","SARC-I'd Hit That","HodgePodge"]
[null,10,"22:30:00","HodgePodge","CT-Sand Sharks"]
[]
[]
[]
[]
["CRABTREE"]
[null,null,null,"Home","Away"]
["Seven Oaks",1,"18:00:00","Seven Oaks","SARC-Good Bumps,Nice Sets"]
["SARC-Good Bumps,Nice Sets",2,"18:30:00","SARC-Mizfits","Seven Oaks"]
["SARC-Mizfits",3,"19:00:00","CT-Scared Hitless","SARC-Good Bumps,Nice Sets"]
["CT-Scared Hitless",4,"19:30:00","LKP-Bumpn' Uglies","Seven Oaks"]
["LKP-Bumpn' Uglies",5,"20:00:00","SARC-Good Bumps,Nice Sets","SARC-Mizfits"]
[null,6,"20:30:00","Seven Oaks","CT-Scared Hitless"]
[null,7,"21:00:00","SARC-Good Bumps,Nice Sets","LKP-Bumpn' Uglies"]
[null,8,"21:30:00","SARC-Mizfits","CT-Scared Hitless"]
[null,9,"22:00:00","CT-Scared Hitless","LKP-Bumpn' Uglies"]
[null,10,"22:30:00","LKP-Bumpn' Uglies","SARC-Mizfits"]

{"sheet":"Night 4 - 25 team single elim.","index":5,"n_rows":51,"n_cols":13,"rows_kept":51,"cut":false,"hidden":false,"merged":[[32,10,33,10]]}
["Aug 21 Championship Night Brackets"]
[]
["25 TEAM SINGLE ELIMINATION SEEDED TOURNAMENT",null,null,null,null,null,"court 1","court 2","court 3"]
[]
["17:30:00","18:00:00","18:30:00","19:00:00","19:30:00","20:00:00","20:30:00","21:00:00","21:30:00",null,"22:05:00"]
[]
[]
[null,null,null,null,null,null,null,"  Announce-ments and Raffle","FINAL FOUR","5   min  ","GROWLER CHAMPIONSHIP"]
[null,16]
[]
[null,17]
[]
[null,null,null,1]
[8]
[]
[25]
[]
[9]
[]
[24]
[null,null,null,5]
[]
[12]
[]
[21]
[null,null,null,null,4]
[]
[null,20]
[]
[]
[null,13]
[null,null,null,null,2]
[null,null,15]
[]
[]
[null,null,18]
[null,null,null,null,null,7]
[]
[null,null,10]
[]
[]
[null,null,23,null,null,6]
[null,null,11]
[]
[]
[null,null,22]
[null,null,null,null,3]
[null,19]
[null,null,null,null,null,null,null,null,null,null,null,null," "]
[]
[null,14]

{"sheet":"old -19 team single elimination","index":6,"n_rows":52,"n_cols":11,"rows_kept":52,"cut":false,"hidden":false,"merged":[[34,8,35,8]]}
["Aug 21 Championship Night Brackets"]
["Top 19 teams plus the Battle of the Bottom (teams 24 & 25)"]
["16 team Single Elmination with the bottom 3 seads having play in Games..  19 Total Games"]
[]
["18:00:00","18:30:00","19:00:00","19:30:00","20:00:00","20:30:00","21:00:00","21:30:00","22:00:00"]
[]
["Bottom 6 play in",null,null,null,null,"break","FINAL FOUR","Battle of the Bottom Matchup","GROWLER CHAMPIONSHIP"]
[null,4,null,null,null,null,null,24]
[]
[]
[null,13]
[null,null,null,null,null,null,null,25]
[null,12]
[]
[]
[null,5]
[]
[null,9]
[]
[]
[null,8]
[]
[null,null,1]
[]
[18]
[]
[]
[19]
[]
[]
[]
[]
[]
[null,null,2]
[16]
[]
[]
[17]
[null,null,10]
[]
[]
[null,null,7]
[]
[null,null,null,3]
[14]
[]
[]
[15]
[null,null,null,11]
[]
[null,null,null,null,null,null,null,null,null,null," "]
[null,null,null,6]